[Event "Live Chess"]
[Site "Chess.com"]
[Date "2023.05.20"]
[Round "-"]
[White "nigelst"]
[Black "weibs440"]
[Result "0-1"]
[WhiteElo "1803"]
[BlackElo "957"]
[TimeControl "300"]
[EndTime "15:46:54 PDT"]
[Termination "weibs440 won by checkmate"]

1. e4 {[%clk 0:04:58.5]} 1... d6 {[%clk 0:04:59.1]} 2. d4 {[%clk 0:04:56.7]}
2... Nf6 {[%clk 0:04:58.6]} 3. Nc3 {[%clk 0:04:55.7]} 3... Nbd7 {[%clk
0:04:57.4]} 4. f4 {[%clk 0:04:53.8]} 4... e5 {[%clk 0:04:56.5]} 5. dxe5 {[%clk
0:04:51.9]} 5... dxe5 {[%clk 0:04:55.4]} 6. Nf3 {[%clk 0:04:50]} 6... c6 {[%clk
0:04:52]} 7. fxe5 {[%clk 0:04:47.7]} 7... Qc7 {[%clk 0:04:46.7]} 8. exf6 {[%clk
0:04:42.8]} 8... gxf6 {[%clk 0:04:33.8]} 9. Bd3 {[%clk 0:04:40.6]} 9... Bb4
{[%clk 0:04:28.7]} 10. O-O {[%clk 0:04:37.4]} 10... Nc5 {[%clk 0:04:25.2]} 11.
Be3 {[%clk 0:04:30.1]} 11... Nxd3 {[%clk 0:04:18.9]} 12. Qxd3 {[%clk 0:04:27.9]}
12... Bd7 {[%clk 0:04:09.7]} 13. Qc4 {[%clk 0:04:26.3]} 13... Bxc3 {[%clk
0:04:06.9]} 14. Qxc3 {[%clk 0:04:25.2]} 14... O-O-O {[%clk 0:04:05.7]} 15. Qxf6
{[%clk 0:04:14.6]} 15... Rhg8 {[%clk 0:03:56.6]} 16. Bf4 {[%clk 0:04:10.6]}
16... Qb6+ {[%clk 0:03:47.8]} 17. Kh1 {[%clk 0:04:09.4]} 17... Qc5 {[%clk
0:03:22.8]} 18. Rad1 {[%clk 0:03:57.1]} 18... Qxc2 {[%clk 0:03:18]} 19. Qd6
{[%clk 0:03:50.9]} 19... Qxg2# {[%clk 0:03:13.8]} 0-1

[Event "Live Chess"]
[Site "Chess.com"]
[Date "2023.05.20"]
[Round "-"]
[White "chessfiction"]
[Black "CheckThis4"]
[Result "1-0"]
[WhiteElo "2350"]
[BlackElo "2518"]
[TimeControl "300"]
[EndTime "15:47:12 PDT"]
[Termination "chessfiction won by resignation"]

1. e4 {[%clk 0:04:58.2]} 1... Nc6 {[%clk 0:04:55.3]} 2. d4 {[%clk 0:04:57.2]}
2... d5 {[%clk 0:04:54.3]} 3. exd5 {[%clk 0:04:56.1]} 3... Qxd5 {[%clk
0:04:54.2]} 4. Be3 {[%clk 0:04:54.7]} 4... e5 {[%clk 0:04:51.7]} 5. c4 {[%clk
0:04:44.7]} 5... Qa5+ {[%clk 0:04:47]} 6. Bd2 {[%clk 0:04:42.2]} 6... Bb4 {[%clk
0:04:45.4]} 7. d5 {[%clk 0:04:41.6]} 7... Nd4 {[%clk 0:04:36.1]} 8. a3 {[%clk
0:04:35.9]} 8... Bxd2+ {[%clk 0:04:33.2]} 9. Nxd2 {[%clk 0:04:35.8]} 9... Bf5
{[%clk 0:04:30]} 10. Rc1 {[%clk 0:04:26.7]} 10... Nf6 {[%clk 0:04:28]} 11. Nf3
{[%clk 0:04:23]} 11... O-O-O {[%clk 0:04:26.6]} 12. Rc3 {[%clk 0:04:15.4]} 12...
Ne4 {[%clk 0:04:18]} 13. Nxe4 {[%clk 0:04:14.2]} 13... Bxe4 {[%clk 0:04:17.9]}
14. Nxd4 {[%clk 0:04:11.9]} 14... exd4 {[%clk 0:04:15.8]} 15. Qxd4 {[%clk
0:04:10.3]} 15... Rhe8 {[%clk 0:03:52.2]} 16. Be2 {[%clk 0:04:08.7]} 16... c5
{[%clk 0:03:42.9]} 17. Qxg7 {[%clk 0:04:00.5]} 17... Kb8 {[%clk 0:03:36.1]} 18.
O-O {[%clk 0:03:51.2]} 18... Qc7 {[%clk 0:03:13.4]} 19. Qg3 {[%clk 0:03:42.8]}
19... Rd6 {[%clk 0:03:10.7]} 20. Bf3 {[%clk 0:03:40.4]} 20... f5 {[%clk
0:02:59.8]} 21. b4 {[%clk 0:03:32.4]} 21... Ka8 {[%clk 0:02:56.2]} 22. Re1
{[%clk 0:03:25]} 22... cxb4 {[%clk 0:02:41.5]} 23. axb4 {[%clk 0:03:22.3]} 23...
Qd8 {[%clk 0:02:40.9]} 24. Bxe4 {[%clk 0:03:15.7]} 24... fxe4 {[%clk 0:02:39.4]}
25. Ra3 {[%clk 0:03:02.8]} 25... Rg6 {[%clk 0:02:32.8]} 26. Qe3 {[%clk
0:03:00.1]} 26... a6 {[%clk 0:02:32]} 27. b5 {[%clk 0:02:55.3]} 27... Reg8
{[%clk 0:02:26.1]} 28. g3 {[%clk 0:02:47.7]} 28... Rf8 {[%clk 0:02:18.8]} 29.
bxa6 {[%clk 0:02:40.8]} 29... b6 {[%clk 0:02:17.4]} 30. Qxe4 {[%clk 0:02:33]}
30... Qd6 {[%clk 0:02:15.4]} 31. Rf3 {[%clk 0:02:27.9]} 31... Rxf3 {[%clk
0:02:09]} 32. Qe8+ {[%clk 0:02:26.8]} 32... Ka7 {[%clk 0:02:07.1]} 33. Re7+
{[%clk 0:02:23.3]} 33... Qxe7 {[%clk 0:02:05.2]} 34. Qxe7+ {[%clk 0:02:22.8]}
34... Kxa6 {[%clk 0:02:04.6]} 35. c5 {[%clk 0:02:07.5]} 35... bxc5 {[%clk
0:01:55.8]} 36. Qe2+ {[%clk 0:02:05.4]} 1-0

[Event "Live Chess"]
[Site "Chess.com"]
[Date "2023.05.20"]
[Round "-"]
[White "birdseed45"]
[Black "Doge_Dandolo"]
[Result "1-0"]
[WhiteElo "1864"]
[BlackElo "2028"]
[TimeControl "300"]
[EndTime "15:47:13 PDT"]
[Termination "birdseed45 won by resignation"]

1. e4 {[%clk 0:04:58.2]} 1... c6 {[%clk 0:04:58.5]} 2. d4 {[%clk 0:04:56.2]}
2... d5 {[%clk 0:04:57.5]} 3. Nc3 {[%clk 0:04:55.3]} 3... dxe4 {[%clk
0:04:56.5]} 4. Nxe4 {[%clk 0:04:55.2]} 4... Bf5 {[%clk 0:04:55.6]} 5. Ng3 {[%clk
0:04:51.2]} 5... Bg6 {[%clk 0:04:54.5]} 6. Nf3 {[%clk 0:04:48.8]} 6... Nd7
{[%clk 0:04:53.1]} 7. Bd3 {[%clk 0:04:47.8]} 7... e6 {[%clk 0:04:51.7]} 8. Bxg6
{[%clk 0:04:45.3]} 8... hxg6 {[%clk 0:04:50.4]} 9. O-O {[%clk 0:04:44.2]} 9...
Bd6 {[%clk 0:04:47.1]} 10. c4 {[%clk 0:04:41.5]} 10... Qb8 {[%clk 0:04:44.9]}
11. d5 {[%clk 0:04:36.8]} 11... cxd5 {[%clk 0:04:39.3]} 12. cxd5 {[%clk
0:04:36.7]} 12... exd5 {[%clk 0:04:37.4]} 13. Re1+ {[%clk 0:04:33.5]} 13... Kf8
{[%clk 0:04:36.2]} 14. Qxd5 {[%clk 0:04:32.1]} 14... Ngf6 {[%clk 0:04:35]} 15.
Qd3 {[%clk 0:04:20.6]} 15... Ne5 {[%clk 0:04:26.3]} 16. Nxe5 {[%clk 0:04:16.5]}
16... Bxe5 {[%clk 0:04:24.9]} 17. Bd2 {[%clk 0:04:07.8]} 17... Rh4 {[%clk
0:04:16.3]} 18. Bg5 {[%clk 0:03:44.9]} 18... Qd6 {[%clk 0:04:09]} 19. Qxd6+
{[%clk 0:03:40.2]} 19... Bxd6 {[%clk 0:04:07.1]} 20. Bxh4 {[%clk 0:03:38.9]} 1-0

[Event "Live Chess"]
[Site "Chess.com"]
[Date "2023.05.20"]
[Round "-"]
[White "Man-Del-Brot"]
[Black "sanjesh_ananda"]
[Result "0-1"]
[WhiteElo "1067"]
[BlackElo "1084"]
[TimeControl "300"]
[EndTime "15:47:16 PDT"]
[Termination "sanjesh_ananda won by checkmate"]

1. d4 {[%clk 0:04:55.8]} 1... d5 {[%clk 0:04:58.6]} 2. Nf3 {[%clk 0:04:52.1]}
2... Nf6 {[%clk 0:04:43.8]} 3. Bf4 {[%clk 0:04:49.6]} 3... Nc6 {[%clk
0:04:39.6]} 4. e3 {[%clk 0:04:47.6]} 4... a6 {[%clk 0:04:36.8]} 5. c3 {[%clk
0:04:44.9]} 5... Bf5 {[%clk 0:04:33.4]} 6. Bd3 {[%clk 0:04:42.9]} 6... e6 {[%clk
0:04:28.7]} 7. O-O {[%clk 0:04:32.7]} 7... Bd6 {[%clk 0:04:19.3]} 8. Ne5 {[%clk
0:04:28.2]} 8... Bxe5 {[%clk 0:04:08.5]} 9. dxe5 {[%clk 0:04:25.7]} 9... Ne4
{[%clk 0:04:03.2]} 10. Nd2 {[%clk 0:04:08.1]} 10... O-O {[%clk 0:03:44]} 11.
Nxe4 {[%clk 0:04:06.2]} 11... Bxe4 {[%clk 0:03:32.7]} 12. Bxe4 {[%clk
0:04:03.4]} 12... dxe4 {[%clk 0:03:31.5]} 13. Qxd8 {[%clk 0:04:02]} 13... Raxd8
{[%clk 0:03:28.5]} 14. Rad1 {[%clk 0:04:00.6]} 14... h6 {[%clk 0:03:17.9]} 15.
h4 {[%clk 0:03:55.9]} 15... Kh7 {[%clk 0:03:13]} 16. b4 {[%clk 0:03:42.5]} 16...
Rd3 {[%clk 0:03:06.2]} 17. Rxd3 {[%clk 0:03:38.4]} 17... exd3 {[%clk 0:03:04.8]}
18. Rd1 {[%clk 0:03:32]} 18... Rd8 {[%clk 0:03:02.7]} 19. Rd2 {[%clk 0:03:28.3]}
19... b6 {[%clk 0:02:54.6]} 20. a4 {[%clk 0:03:25.7]} 20... a5 {[%clk
0:02:51.7]} 21. g4 {[%clk 0:03:02.4]} 21... axb4 {[%clk 0:02:48.7]} 22. cxb4
{[%clk 0:02:59]} 22... Nxb4 {[%clk 0:02:45.6]} 23. g5 {[%clk 0:02:54.5]} 23...
Na6 {[%clk 0:02:23.7]} 24. gxh6 {[%clk 0:02:52.3]} 24... gxh6 {[%clk 0:02:22.2]}
25. e4 {[%clk 0:02:47.8]} 25... Nc5 {[%clk 0:02:17.8]} 26. f3 {[%clk 0:02:37.8]}
26... Nxa4 {[%clk 0:02:15.5]} 27. Kf2 {[%clk 0:02:35.9]} 27... b5 {[%clk
0:02:11.2]} 28. Ke3 {[%clk 0:02:33.6]} 28... Nc5 {[%clk 0:02:05.7]} 29. Bg3
{[%clk 0:02:30.1]} 29... b4 {[%clk 0:01:59.2]} 30. Be1 {[%clk 0:02:24]} 30... b3
{[%clk 0:01:49.4]} 31. Rb2 {[%clk 0:02:21.2]} 31... Kg6 {[%clk 0:01:40.1]} 32.
Bb4 {[%clk 0:02:19.8]} 32... Na6 {[%clk 0:01:04.8]} 33. Rxb3 {[%clk 0:02:09.7]}
33... Nxb4 {[%clk 0:01:01.7]} 34. Rxb4 {[%clk 0:02:08.5]} 34... d2 {[%clk
0:00:59.2]} 35. h5+ {[%clk 0:01:52.3]} 35... Kxh5 {[%clk 0:00:55.9]} 36. Rb1
{[%clk 0:01:48]} 36... d1=Q {[%clk 0:00:52.8]} 37. Rxd1 {[%clk 0:01:47]} 37...
Rxd1 {[%clk 0:00:51.2]} 38. Ke2 {[%clk 0:01:45.4]} 38... Rd8 {[%clk 0:00:49.2]}
39. Ke3 {[%clk 0:01:42.2]} 39... c5 {[%clk 0:00:47.5]} 40. f4 {[%clk 0:01:38.2]}
40... c4 {[%clk 0:00:46.2]} 41. f5 {[%clk 0:01:36.9]} 41... c3 {[%clk
0:00:42.3]} 42. Kf4 {[%clk 0:01:36.5]} 42... c2 {[%clk 0:00:38.3]} 43. fxe6
{[%clk 0:01:29.6]} 43... fxe6 {[%clk 0:00:36.1]} 44. Ke3 {[%clk 0:01:27]} 44...
c1=Q+ {[%clk 0:00:33.7]} 45. Kf3 {[%clk 0:01:25.4]} 45... Rd3+ {[%clk
0:00:30.7]} 46. Kg2 {[%clk 0:01:19.4]} 46... Qc2+ {[%clk 0:00:29.3]} 47. Kf1
{[%clk 0:01:16.5]} 47... Rd1# {[%clk 0:00:28]} 0-1

[Event "Live Chess"]
[Site "Chess.com"]
[Date "2023.05.20"]
[Round "-"]
[White "laminaaprod"]
[Black "WelshTiger"]
[Result "0-1"]
[WhiteElo "2243"]
[BlackElo "2374"]
[TimeControl "300"]
[EndTime "15:47:24 PDT"]
[Termination "WelshTiger won by resignation"]

1. d4 {[%clk 0:04:58.8]} 1... d5 {[%clk 0:04:51.5]} 2. c4 {[%clk 0:04:58.1]}
2... e6 {[%clk 0:04:51]} 3. Nf3 {[%clk 0:04:57]} 3... Nf6 {[%clk 0:04:49.7]} 4.
g3 {[%clk 0:04:56]} 4... c5 {[%clk 0:04:48.8]} 5. cxd5 {[%clk 0:04:54.5]} 5...
exd5 {[%clk 0:04:47.9]} 6. Bg2 {[%clk 0:04:54.1]} 6... Nc6 {[%clk 0:04:47.3]} 7.
O-O {[%clk 0:04:53.5]} 7... Be7 {[%clk 0:04:46.8]} 8. Nc3 {[%clk 0:04:52.7]}
8... O-O {[%clk 0:04:44.7]} 9. Bg5 {[%clk 0:04:52.3]} 9... c4 {[%clk 0:04:43.8]}
10. Ne5 {[%clk 0:04:50.4]} 10... Be6 {[%clk 0:04:41.9]} 11. Nxc6 {[%clk
0:04:42.9]} 11... bxc6 {[%clk 0:04:40.9]} 12. b3 {[%clk 0:04:42.4]} 12... Qa5
{[%clk 0:04:39.7]} 13. Na4 {[%clk 0:04:25.4]} 13... Rad8 {[%clk 0:04:32.2]} 14.
Bxf6 {[%clk 0:04:14.2]} 14... Bxf6 {[%clk 0:04:29.9]} 15. Nc5 {[%clk 0:04:09.2]}
15... Qb6 {[%clk 0:04:10.7]} 16. Qc2 {[%clk 0:03:54.2]} 16... Bxd4 {[%clk
0:04:03]} 17. Nxe6 {[%clk 0:03:51.6]} 17... fxe6 {[%clk 0:04:01.3]} 0-1

[Event "Live Chess"]
[Site "Chess.com"]
[Date "2023.05.20"]
[Round "-"]
[White "JoshMcK"]
[Black "SupremeTactician"]
[Result "0-1"]
[WhiteElo "1518"]
[BlackElo "2346"]
[TimeControl "300"]
[EndTime "15:47:34 PDT"]
[Termination "SupremeTactician won by resignation"]

1. e4 {[%clk 0:04:59.3]} 1... e5 {[%clk 0:04:57.8]} 2. Nf3 {[%clk 0:04:57.5]}
2... Nc6 {[%clk 0:04:55.8]} 3. Bb5 {[%clk 0:04:55.6]} 3... a6 {[%clk 0:04:55.1]}
4. Ba4 {[%clk 0:04:54.2]} 4... Nf6 {[%clk 0:04:53.8]} 5. O-O {[%clk 0:04:53.2]}
5... Nxe4 {[%clk 0:04:52.4]} 6. d4 {[%clk 0:04:51.8]} 6... Be7 {[%clk
0:04:49.8]} 7. dxe5 {[%clk 0:04:50.5]} 7... O-O {[%clk 0:04:47.6]} 8. Bxc6
{[%clk 0:04:45.5]} 8... dxc6 {[%clk 0:04:46.6]} 9. Qxd8 {[%clk 0:04:43.6]} 9...
Rxd8 {[%clk 0:04:46.5]} 10. Be3 {[%clk 0:04:38.2]} 10... Bg4 {[%clk 0:04:44.4]}
11. Nc3 {[%clk 0:04:35.9]} 11... Nxc3 {[%clk 0:04:42.4]} 12. bxc3 {[%clk
0:04:34.5]} 12... Rd5 {[%clk 0:04:37.1]} 13. h3 {[%clk 0:04:30.2]} 13... Bxf3
{[%clk 0:04:36.2]} 14. gxf3 {[%clk 0:04:29.4]} 14... Rxe5 {[%clk 0:04:35.5]} 15.
Rfe1 {[%clk 0:04:26.4]} 15... Re8 {[%clk 0:04:33.6]} 16. Bd4 {[%clk 0:04:19.6]}
16... Rxe1+ {[%clk 0:04:30.7]} 17. Rxe1 {[%clk 0:04:19.5]} 17... Kf8 {[%clk
0:04:29.6]} 18. Kf1 {[%clk 0:04:16.7]} 18... Bf6 {[%clk 0:04:25]} 19. Bc5+
{[%clk 0:04:04.5]} 19... Be7 {[%clk 0:04:20.5]} 20. Bxe7+ {[%clk 0:04:00.1]}
20... Rxe7 {[%clk 0:04:19.2]} 21. Rxe7 {[%clk 0:03:59.7]} 21... Kxe7 {[%clk
0:04:18.5]} 22. Ke2 {[%clk 0:03:57.9]} 22... Kd6 {[%clk 0:04:17.8]} 23. Kd3
{[%clk 0:03:56.3]} 23... Ke5 {[%clk 0:04:17.2]} 24. Ke3 {[%clk 0:03:55.4]} 24...
g5 {[%clk 0:04:16.1]} 25. a3 {[%clk 0:03:51]} 25... h5 {[%clk 0:04:13.9]} 26. c4
{[%clk 0:03:48.8]} 26... c5 {[%clk 0:04:11.9]} 27. c3 {[%clk 0:03:47.8]} 27...
c6 {[%clk 0:04:10.8]} 28. a4 {[%clk 0:03:46.6]} 28... b5 {[%clk 0:04:10.2]} 29.
axb5 {[%clk 0:03:44.3]} 29... cxb5 {[%clk 0:04:09.1]} 30. cxb5 {[%clk
0:03:43.7]} 30... axb5 {[%clk 0:04:08.8]} 0-1

[Event "Live Chess"]
[Site "Chess.com"]
[Date "2023.05.20"]
[Round "-"]
[White "MarkLim1"]
[Black "LodeshChess"]
[Result "1-0"]
[WhiteElo "1658"]
[BlackElo "1127"]
[TimeControl "300"]
[EndTime "15:48:15 PDT"]
[Termination "MarkLim1 won by resignation"]

1. d4 {[%clk 0:04:58.2]} 1... Nf6 {[%clk 0:04:52]} 2. Nf3 {[%clk 0:04:57.2]}
2... c5 {[%clk 0:04:50.7]} 3. d5 {[%clk 0:04:56.1]} 3... d6 {[%clk 0:04:49.1]}
4. Nc3 {[%clk 0:04:55.3]} 4... e5 {[%clk 0:04:48.3]} 5. e4 {[%clk 0:04:53.9]}
5... Qa5 {[%clk 0:04:44.6]} 6. Bb5+ {[%clk 0:04:51.9]} 6... Bd7 {[%clk
0:04:42.8]} 7. Bxd7+ {[%clk 0:04:49.6]} 7... Nbxd7 {[%clk 0:04:42.3]} 8. O-O
{[%clk 0:04:48.7]} 8... g6 {[%clk 0:04:37.2]} 9. Nd2 {[%clk 0:04:45]} 9... Bg7
{[%clk 0:04:35.2]} 10. Nc4 {[%clk 0:04:44]} 10... Qc7 {[%clk 0:04:25.3]} 11. a4
{[%clk 0:04:36.5]} 11... O-O {[%clk 0:04:22.1]} 12. Nb5 {[%clk 0:04:34.8]} 12...
Qd8 {[%clk 0:04:14.9]} 13. Nbxd6 {[%clk 0:04:32.3]} 13... Qc7 {[%clk 0:03:41.3]}
14. Bg5 {[%clk 0:03:21.7]} 14... a6 {[%clk 0:03:22.6]} 15. a5 {[%clk 0:03:18.1]}
15... h6 {[%clk 0:03:08.2]} 16. Bh4 {[%clk 0:03:13.8]} 16... g5 {[%clk
0:03:04.7]} 17. Bg3 {[%clk 0:03:12.9]} 17... Nh5 {[%clk 0:03:01.6]} 18. Qxh5
{[%clk 0:03:11.2]} 1-0

[Event "Live Chess"]
[Site "Chess.com"]
[Date "2023.05.20"]
[Round "-"]
[White "mpersander"]
[Black "GEMdzq"]
[Result "0-1"]
[WhiteElo "1018"]
[BlackElo "2230"]
[TimeControl "300"]
[EndTime "15:48:36 PDT"]
[Termination "GEMdzq won by checkmate"]

1. e4 {[%clk 0:04:54.5]} 1... d6 {[%clk 0:04:58.7]} 2. d4 {[%clk 0:04:52.2]}
2... Nf6 {[%clk 0:04:58]} 3. e5 {[%clk 0:04:49.9]} 3... dxe5 {[%clk 0:04:54.2]}
4. dxe5 {[%clk 0:04:48.7]} 4... Qxd1+ {[%clk 0:04:53]} 5. Kxd1 {[%clk
0:04:47.6]} 5... Ng4 {[%clk 0:04:52]} 6. f3 {[%clk 0:04:38]} 6... Nxe5 {[%clk
0:04:50.7]} 7. Bf4 {[%clk 0:04:36.8]} 7... Nbc6 {[%clk 0:04:47.7]} 8. Bg3 {[%clk
0:04:31.2]} 8... Bf5 {[%clk 0:04:45.5]} 9. f4 {[%clk 0:04:29.3]} 9... O-O-O+
{[%clk 0:04:44.3]} 10. Nd2 {[%clk 0:04:23.6]} 10... Ng4 {[%clk 0:04:40.1]} 11.
h3 {[%clk 0:04:16.3]} 11... Ne3+ {[%clk 0:04:38.4]} 12. Ke2 {[%clk 0:04:03.2]}
12... Nxc2 {[%clk 0:04:35.8]} 13. Rc1 {[%clk 0:03:56.7]} 13... Bd3+ {[%clk
0:04:32.9]} 14. Kf2 {[%clk 0:03:48.7]} 14... N2b4 {[%clk 0:04:25.7]} 15. Ke3
{[%clk 0:03:36.1]} 15... e6 {[%clk 0:04:11.7]} 16. Ngf3 {[%clk 0:03:19.7]} 16...
Nc2+ {[%clk 0:04:04.6]} 17. Rxc2 {[%clk 0:02:53.5]} 17... Bxc2 {[%clk
0:04:04.5]} 18. Bb5 {[%clk 0:02:48]} 18... Bc5+ {[%clk 0:03:58.6]} 19. Ke2
{[%clk 0:02:36.3]} 19... Nd4+ {[%clk 0:03:40.7]} 20. Nxd4 {[%clk 0:02:24.4]}
20... Bxd4 {[%clk 0:03:40.6]} 21. b3 {[%clk 0:02:22.1]} 21... c6 {[%clk
0:03:28.8]} 22. Bc4 {[%clk 0:01:55.5]} 22... b5 {[%clk 0:03:21.5]} 23. Rc1
{[%clk 0:01:51]} 23... bxc4 {[%clk 0:03:11.5]} 24. Rxc2 {[%clk 0:01:49.8]} 24...
c3 {[%clk 0:03:05.1]} 25. Nf3 {[%clk 0:01:46.8]} 25... Bf6 {[%clk 0:03:03.4]}
26. Ne5 {[%clk 0:01:43.9]} 26... Bxe5 {[%clk 0:03:00.9]} 27. fxe5 {[%clk
0:01:42]} 27... Rd2+ {[%clk 0:03:00]} 28. Rxd2 {[%clk 0:01:40.6]} 28... cxd2
{[%clk 0:02:59.9]} 29. Kxd2 {[%clk 0:01:39.7]} 29... Rd8+ {[%clk 0:02:58.1]} 30.
Ke3 {[%clk 0:01:37.5]} 30... Rd1 {[%clk 0:02:54.8]} 31. a3 {[%clk 0:01:30]}
31... Rb1 {[%clk 0:02:52.7]} 32. b4 {[%clk 0:01:28.2]} 32... Rb3+ {[%clk
0:02:50.7]} 33. Kf4 {[%clk 0:01:21.7]} 33... g5+ {[%clk 0:02:47.7]} 34. Kg4
{[%clk 0:01:18.3]} 34... h5+ {[%clk 0:02:45.5]} 35. Kxh5 {[%clk 0:01:13.2]}
35... Rxg3 {[%clk 0:02:44.6]} 36. h4 {[%clk 0:01:07.9]} 36... gxh4 {[%clk
0:02:42.8]} 37. Kxh4 {[%clk 0:01:05.9]} 37... Rxg2 {[%clk 0:02:42]} 38. Kh5
{[%clk 0:01:03.8]} 38... Kd8 {[%clk 0:02:38.6]} 39. a4 {[%clk 0:01:00.8]} 39...
Ke7 {[%clk 0:02:37.6]} 40. b5 {[%clk 0:00:58.1]} 40... cxb5 {[%clk 0:02:35.5]}
41. axb5 {[%clk 0:00:57.1]} 41... f6 {[%clk 0:02:34.5]} 42. exf6+ {[%clk
0:00:52.6]} 42... Kxf6 {[%clk 0:02:32.7]} 43. Kh4 {[%clk 0:00:51.7]} 43... Kf5
{[%clk 0:02:28.3]} 44. Kh3 {[%clk 0:00:50.3]} 44... Rg8 {[%clk 0:02:24.7]} 45.
Kh2 {[%clk 0:00:41.4]} 45... Kf4 {[%clk 0:02:23.1]} 46. Kh3 {[%clk 0:00:21.8]}
46... e5 {[%clk 0:02:17]} 47. Kh4 {[%clk 0:00:19.4]} 47... Rh8# {[%clk
0:02:15.5]} 0-1

[Event "Live Chess"]
[Site "Chess.com"]
[Date "2023.05.20"]
[Round "-"]
[White "stevochess11"]
[Black "luckywookie"]
[Result "1-0"]
[WhiteElo "1748"]
[BlackElo "755"]
[TimeControl "300"]
[EndTime "15:48:36 PDT"]
[Termination "stevochess11 won by checkmate"]

1. d4 {[%clk 0:04:56.5]} 1... d5 {[%clk 0:04:58.1]} 2. Nf3 {[%clk 0:04:55.8]}
2... c6 {[%clk 0:04:57.2]} 3. c4 {[%clk 0:04:50.3]} 3... Nf6 {[%clk 0:04:54.4]}
4. Nc3 {[%clk 0:04:45.5]} 4... e6 {[%clk 0:04:49.6]} 5. Bg5 {[%clk 0:04:42.8]}
5... Nbd7 {[%clk 0:04:48.2]} 6. cxd5 {[%clk 0:04:41.3]} 6... cxd5 {[%clk
0:04:43.6]} 7. e3 {[%clk 0:04:35.4]} 7... a6 {[%clk 0:04:41.9]} 8. Bd3 {[%clk
0:04:34.6]} 8... Bb4 {[%clk 0:04:37.9]} 9. O-O {[%clk 0:04:33.7]} 9... Qa5
{[%clk 0:04:26.5]} 10. Rc1 {[%clk 0:04:26.2]} 10... O-O {[%clk 0:04:21.9]} 11.
Ne5 {[%clk 0:04:22.6]} 11... Bxc3 {[%clk 0:04:10.4]} 12. bxc3 {[%clk 0:04:18.5]}
12... Ne4 {[%clk 0:04:08.7]} 13. Qh5 {[%clk 0:04:05.5]} 13... f6 {[%clk
0:04:00.1]} 14. Nxd7 {[%clk 0:03:59.4]} 14... Bxd7 {[%clk 0:03:58.8]} 15. Bh4
{[%clk 0:03:52.6]} 15... Qxa2 {[%clk 0:03:28.4]} 16. f3 {[%clk 0:03:49.9]} 16...
g6 {[%clk 0:03:21.5]} 17. Qh6 {[%clk 0:03:44.4]} 17... g5 {[%clk 0:03:09.5]} 18.
fxe4 {[%clk 0:03:40.8]} 18... gxh4 {[%clk 0:03:05.8]} 19. exd5 {[%clk
0:03:38.8]} 19... Qxd5 {[%clk 0:02:51.8]} 20. Qxh7# {[%clk 0:03:37.4]} 1-0

[Event "Live Chess"]
[Site "Chess.com"]
[Date "2023.05.20"]
[Round "-"]
[White "blowerd"]
[Black "TheSmoulderingMaster"]
[Result "0-1"]
[WhiteElo "1392"]
[BlackElo "1690"]
[TimeControl "300"]
[EndTime "15:48:55 PDT"]
[Termination "TheSmoulderingMaster won on time"]

1. e4 {[%clk 0:04:58.2]} 1... c5 {[%clk 0:04:58.4]} 2. Nf3 {[%clk 0:04:57.9]}
2... d6 {[%clk 0:04:57.4]} 3. Bc4 {[%clk 0:04:57.5]} 3... Nc6 {[%clk 0:04:56.2]}
4. Nc3 {[%clk 0:04:57.1]} 4... e6 {[%clk 0:04:55.7]} 5. d4 {[%clk 0:04:56.2]}
5... cxd4 {[%clk 0:04:54.7]} 6. Nxd4 {[%clk 0:04:54.2]} 6... Nf6 {[%clk
0:04:53.9]} 7. Nxc6 {[%clk 0:04:51.9]} 7... bxc6 {[%clk 0:04:53.4]} 8. O-O
{[%clk 0:04:49.3]} 8... Be7 {[%clk 0:04:51.6]} 9. Re1 {[%clk 0:04:48.2]} 9...
O-O {[%clk 0:04:50.7]} 10. Bg5 {[%clk 0:04:46.6]} 10... Qa5 {[%clk 0:04:48.9]}
11. Bxf6 {[%clk 0:04:32.7]} 11... Bxf6 {[%clk 0:04:47.4]} 12. Qxd6 {[%clk
0:04:21.2]} 12... Ba6 {[%clk 0:04:41.9]} 13. Qxc6 {[%clk 0:04:04.6]} 13... Bxc4
{[%clk 0:04:37.1]} 14. Qxc4 {[%clk 0:04:01.9]} 14... Rac8 {[%clk 0:04:36]} 15.
Qd3 {[%clk 0:03:56.9]} 15... Qb4 {[%clk 0:04:33.9]} 16. Rab1 {[%clk 0:03:46.7]}
16... Rfd8 {[%clk 0:04:32]} 17. Qf3 {[%clk 0:03:17.3]} 17... Rd2 {[%clk
0:04:24.6]} 18. e5 {[%clk 0:02:53.1]} 18... Be7 {[%clk 0:04:23.4]} 19. a3 {[%clk
0:02:45]} 19... Qa5 {[%clk 0:04:21]} 20. Red1 {[%clk 0:02:27.6]} 20... Rxc2
{[%clk 0:04:19]} 21. Rd7 {[%clk 0:02:24.6]} 21... Bxa3 {[%clk 0:04:13.6]} 22.
bxa3 {[%clk 0:02:09.4]} 22... Rf8 {[%clk 0:04:06.8]} 23. Nb5 {[%clk 0:01:58.4]}
23... Qb6 {[%clk 0:03:51.8]} 24. Rbd1 {[%clk 0:01:23.8]} 24... Qxb5 {[%clk
0:03:40.4]} 25. Rd8 {[%clk 0:01:17.9]} 25... Qc5 {[%clk 0:03:21.9]} 26. Rxf8+
{[%clk 0:01:08.4]} 26... Qxf8 {[%clk 0:03:20.2]} 27. Qd3 {[%clk 0:01:05.2]}
27... Rc8 {[%clk 0:03:14.1]} 28. h3 {[%clk 0:01:02]} 28... g6 {[%clk 0:03:13.4]}
29. Qd6 {[%clk 0:00:54.7]} 29... Qh6 {[%clk 0:03:07.2]} 30. Qe7 {[%clk
0:00:42.5]} 30... Qf8 {[%clk 0:02:47]} 31. Qxa7 {[%clk 0:00:35.3]} 31... Ra8
{[%clk 0:02:45.5]} 32. Qd4 {[%clk 0:00:27.1]} 32... Qxa3 {[%clk 0:02:42.7]} 33.
Qg4 {[%clk 0:00:17.4]} 33... Qb2 {[%clk 0:02:36.3]} 34. Qh4 {[%clk 0:00:11.8]}
34... Qxe5 {[%clk 0:02:29.9]} 35. Rd8+ {[%clk 0:00:10.4]} 35... Rxd8 {[%clk
0:02:28.3]} 36. Qxd8+ {[%clk 0:00:09.3]} 36... Kg7 {[%clk 0:02:27.9]} 37. Qd7
{[%clk 0:00:07.9]} 37... Qe1+ {[%clk 0:02:25.9]} 38. Kh2 {[%clk 0:00:06.4]}
38... Qxf2 {[%clk 0:02:24.7]} 39. Qe8 {[%clk 0:00:04.1]} 39... Qf4+ {[%clk
0:02:22.2]} 40. Kh1 {[%clk 0:00:01.5]} 40... e5 {[%clk 0:02:18.8]} 0-1